fUST/lending_fUST_20240606
["ID","MTS","AMOUNT","RATE_DAILY","PERIOD"]
[328647206,1717668632395,-228.611058,0.0002213,2]
[328647207,1717668632405,-1420.548137,0.00022498,2]
[328647208,1717668632415,-382.58376651,0.00022553,2]
[328647210,1717668632495,-1822.227981,0.00022553,2]
[328647218,1717668638244,-918.65065057,0.00022553,2]
[328647220,1717668638388,-90.68494932,0.00022553,2]
[328647222,1717668638397,-631.28214651,0.00023092,2]
[328647224,1717668638407,-151.0,0.00024342,7]
[328647226,1717668638417,-762.53852719,0.00024919,2]
[328647227,1717668638427,-151.0,0.0002492,7]
[328647228,1717668638436,-191.8716532,0.00025,2]
[328647229,1717668638445,-161.96234128,0.00025,2]
[328647266,1717668643936,-138.03765872,0.00025,2]
[328647267,1717668643946,-177.0,0.00025,2]
[328647268,1717668643958,-1000.0,0.00025,10]
[328647269,1717668643968,-270.42140488,0.00025,4]
[328647270,1717668644067,-1779.03047797,0.00025,4]
[328647271,1717668644076,-401.88954213,0.00025091,2]
[328647272,1717668644087,-155.35807624,0.00025092,2]
[328647273,1717668644096,-11501.62,0.00025182,3]
[328647274,1717668644105,-17957.87,0.00025182,3]
[328647275,1717668644114,-404.75,0.00025182,3]
[328647276,1717668644124,-202.37,0.00025182,3]
[328647277,1717668644133,-14964.89,0.00025182,3]
[328647278,1717668644142,-500.0,0.00025191,2]
[328647279,1717668644152,-500.0,0.00025191,2]
[328647280,1717668644162,-500.0,0.00025191,2]
[328647281,1717668644171,-268.76319379,0.00025191,2]
[328647282,1717668644181,-500.0,0.00025191,2]
[328647283,1717668644190,-404.31418846,0.00025191,2]
[328647284,1717668644199,-1463.26839664,0.00025192,2]
[328647285,1717668644209,-877.89529555,0.00025192,2]
[328647286,1717668644219,-225.05706064,0.00025192,2]
[328647287,1717668644229,-124339.56865464,0.00025192,7]
[328647288,1717668644238,-3989.73455123,0.00025192,2]
[328647289,1717668644249,-1070.931625,0.00025192,2]
[328647363,1717669832741,-154.95351395,0.0002162,2]
[328647364,1717669832751,-384.04648605,0.00021641,2]
[328647365,1717669832763,-2428.08630603,0.00021641,2]
[328647366,1717669832773,-166.666666,0.00021644,2]
[328647367,1717669832790,-631.90966054,0.00023092,2]
[328647368,1717669832809,-167.631425,0.00023385,2]
[328647369,1717669832824,-762.53852719,0.000244,2]
[328647370,1717669832841,-4236.27632862,0.00024747,2]
[328647371,1717669832857,-151.0,0.00024924,7]
[328647372,1717669832873,-1000.0,0.00025,11]
[328647373,1717669832891,-27039.90792026,0.00025048,2]
[328647430,1717669842994,-686.02573019,0.00021619,2]
[328647431,1717669843004,-166.666666,0.00021644,2]
[328647432,1717669843013,-5779.90760381,0.00025048,2]
[328647437,1717669843177,-14751.69982001,0.00025048,2]
[328647465,1717670324523,1500.61628881,9.999e-05,2]
[328647475,1717670430620,1342.40609524,9.999e-05,2]
[328647476,1717670708851,181.91947349,9.999e-05,2]
[328647490,1717670956191,185.70194479,0.000296,120]
[328647491,1717670991956,686.02573019,9.999e-05,2]
[328647528,1717671032987,-780.50682706,0.000189,2]
[328647530,1717671032996,-166.666666,0.00021644,2]
[328647532,1717671033005,-150.0,0.00022977,2]
[328647534,1717671033015,-1000.0,0.00023,2]
[328647536,1717671033024,-1504.3358107,0.00023306,2]
[328647538,1717671033033,-585.8590925,0.0002337,2]
[328647540,1717671033043,-167.325436,0.00023478,2]
[328647542,1717671033052,-1000.0,0.000235,2]
[328647544,1717671033061,-780.50682706,0.000239,2]
[328647546,1717671033071,-1000.0,0.00024,2]
[328647548,1717671033080,-2559.48235466,0.000244,2]
[328647550,1717671033089,-1000.0,0.000245,2]
[328647552,1717671033099,-205.1548009,0.00024548,2]
[328647554,1717671033108,-153.0,0.00024548,2]
[328647555,1717671033117,-4236.27632862,0.0002476,2]
[328647556,1717671033126,-187.7942234,0.00024797,2]
[328647557,1717671033135,-247.64380336,0.00024824,2]
[328647558,1717671033144,-247.64380336,0.00024855,2]
[328647559,1717671033154,-247.64380336,0.00024886,2]
[328647560,1717671033163,-34655.24929113,0.000249,2]
[328647561,1717671033172,-247.64380336,0.00024917,2]
[328647562,1717671033182,-151.0,0.00024924,7]
[328647563,1717671033191,-247.64380336,0.00024948,2]
[328647564,1717671033200,-1072.0,0.00025,5]
[328647565,1717671033209,-5000.0,0.00025,5]
[328647566,1717671033218,-800.07347767,0.00025,2]
[328647567,1717671033227,-401.88954213,0.00025034,2]
[328647568,1717671033236,-160.08529475,0.00025035,2]
[328647569,1717671033246,-8660.24,0.00025036,3]
[328647570,1717671033255,-303.56,0.00025036,3]
[328647571,1717671033264,-12470.74,0.00025038,3]
[328647572,1717671033273,-2841.96329752,0.00025038,3]
[328647579,1717671039975,-762.53852719,0.00024499,2]
[328647580,1717671039985,-3918.65379594,0.00025038,7]
[328647582,1717671039996,-4318.80767687,0.00025038,3]
[328647586,1717671040329,-1405.29436376,0.00025038,3]
[328647588,1717671040341,-1545.41389637,0.00025038,3]
[328647591,1717671040355,-280.81076548,0.00025038,3]
[328647593,1717671040364,-154.95351395,0.00025046,2]
[328647595,1717671040374,-2309.02808388,0.00025046,2]
[328647597,1717671040384,-1178.11855971,0.00025046,2]
[328647599,1717671040393,-275.36212988,0.00025046,2]
[328647601,1717671040402,-181.67894173,0.00025046,2]
[328647603,1717671040413,-1763.44329322,0.00025046,2]
[328647639,1717671044506,-5128.09539684,0.00025046,2]
[328647670,1717671300293,154.95351395,9.999e-05,2]
[328647671,1717671570150,5000.0,0.00022,10]
[328647727,1717672232384,-871.21736108,0.00016499,2]
[328647729,1717672232394,-292.31118058,0.00016499,2]
[328647731,1717672232403,-760.23457154,0.000199,2]
[328647732,1717672232413,-1628.1313824,0.00020909,2]
[328647733,1717672232423,-24900.0,0.00020926,2]
[328647734,1717672232433,-166.666666,0.00021644,2]
[328647735,1717672232442,-192.89647917,0.000219,2]
[328647736,1717672232451,-1689.82993633,0.00021998,2]
[328647737,1717672232460,-945.32067944,0.00021998,2]
[328647738,1717672232470,-9911.76097796,0.00021999,2]
[328647739,1717672232479,-19078.26832886,0.00022,2]
[328647740,1717672232490,-4375.21816774,0.00022,2]
[328647755,1717672238137,-252.97,0.0002199,3]
[328647757,1717672238147,-1247.73159243,0.00022,7]
[328647819,1717672243684,-711.59530554,0.00022,7]
[328647820,1717672243694,-2291.54651994,0.00022,2]
[328647838,1717672248683,-758.93,0.0002199,3]
[328647839,1717672248693,-24853.26771185,0.00022,2]
[328647840,1717672647730,759.55453663,9.999e-05,2]
[328647842,1717672886176,5000.0,0.00028,120]
[328647843,1717673239815,190.40082049,0.000156,2]
[328647965,1717673439001,-154.95351395,0.0002,2]
[328647967,1717673439011,-167.325436,0.0002134,2]
[328647969,1717673439022,-193.35469089,0.00021798,2]
[328647971,1717673439034,-3674.54525726,0.000218,2]
[328648367,1717674632474,-169.18535452,0.00018548,2]
[328648368,1717674632484,-2812.13279208,0.00018643,2]
[328648369,1717674632492,-46615.11241243,0.00018644,2]
[328648370,1717674632501,-11049.51431687,0.00018645,2]
[328648385,1717674638500,-528.16653539,0.00018645,7]
[328648395,1717674641994,-451.49691359,0.00018645,7]
[328648396,1717674642004,-4715.59664977,0.00018645,2]
[328648397,1717674642017,-14213.61802506,0.00018645,2]
[328648404,1717674643656,-485.93968267,0.00018645,2]
[328648435,1717674646610,-11616.21819163,0.00018645,2]
[328648436,1717674646620,-6318.70690617,0.00018646,2]
[328648442,1717675326069,14109.0,0.00028,120]
[328648443,1717675474747,5000.0,0.00028,120]
[328648496,1717675832693,-4236.27632862,0.00018577,2]
[328648498,1717675832703,-167.631426,0.00019359,2]
[328648500,1717675832712,-24900.0,0.00020144,2]
[328648501,1717675832722,-153.0,0.000204,2]
[328648503,1717675832731,-153.0,0.000204,2]
[328648505,1717675832740,-153.0,0.000204,2]
[328648506,1717675832750,-167.631425,0.00020484,2]
[328648508,1717675832759,-153.0,0.000205,2]
[328648510,1717675832769,-153.0,0.000205,2]
[328648511,1717675832778,-153.0,0.000205,2]
[328648513,1717675832787,-153.0,0.00020505,2]
[328648515,1717675832796,-157.987017,0.000213,2]
[328648516,1717675832805,-153.0,0.000213,2]
[328648518,1717675832815,-185.2960688,0.00021334,2]
[328648520,1717675832824,-158.35919043,0.00021698,2]
[328648528,1717675832919,-156.19711528,0.0002178,2]
[328648530,1717675832928,-809.5,0.00021788,3]
[328648531,1717675832938,-160.08529475,0.00021797,2]
[328648533,1717675832947,-27383.55451281,0.00021798,2]
[328648535,1717675832956,-6390.84674001,0.00021798,2]
[328648625,1717675838858,-18998.85999833,0.00021798,2]
[328648627,1717675838870,-1169.62442848,0.00021798,2]
[328649358,1717675886619,1100.10114648,0.00015,2]
[328649359,1717675891668,786.00291044,9.999e-05,2]
[328649360,1717675891696,24180.84497713,9.999e-05,2]
[328649361,1717675891730,10755.84603291,9.999e-05,2]
[328649402,1717676486730,29177.65182761,0.00011,2]
[328649515,1717677033989,-190.40082049,0.0001865,2]
[328649516,1717677033998,-223.42815,0.00018651,2]
[328649517,1717677034008,-1115.83753246,0.000189,2]
[328649518,1717677034018,-10482.25493534,0.00019122,2]
[328649519,1717677034028,-9161.34853279,0.00019123,2]
[328649520,1717677034037,-364.43590794,0.00019124,2]
[328649521,1717677034047,-167.325436,0.00019178,2]
[328649522,1717677034056,-173.395069,0.0001988,2]
[328649523,1717677034174,-21962.72800958,0.00020057,2]
[328649562,1717677037936,-3557.15,0.0001834,2]
[328649569,1717677037997,-8999.46000165,0.0001834,2]
[328649588,1717677038167,-12343.38999835,0.0001834,2]
[328649590,1717677038178,-293.13055695,0.00020812,2]
[328649592,1717677038188,-2559.48235466,0.00020812,2]
[328649594,1717677038198,-293.13055693,0.00021034,2]
[328649596,1717677038208,-386.89373099,0.00021166,2]
[328649598,1717677038219,-229.76306556,0.00021166,2]
[328649600,1717677038228,-500.0,0.00021166,2]
[328649602,1717677038238,-500.0,0.00021166,2]
[328649604,1717677038248,-500.0,0.00021166,2]
[328649606,1717677038257,-500.0,0.00021166,2]
[328649608,1717677038267,-500.0,0.00021166,2]
[328649610,1717677038277,-333.10646252,0.00021166,2]
[328649612,1717677038286,-500.0,0.00021166,2]
[328649614,1717677038295,-500.0,0.00021166,2]
[328649616,1717677038304,-500.0,0.00021166,2]
[328649618,1717677038314,-500.0,0.00021166,2]
[328649619,1717677038323,-500.0,0.00021166,2]
[328649620,1717677038332,-500.0,0.00021166,2]
[328649622,1717677038341,-500.0,0.00021166,2]
[328649624,1717677038351,-500.0,0.00021166,2]
[328649626,1717677038362,-500.0,0.00021166,2]
[328649628,1717677038371,-500.0,0.00021166,2]
[328649630,1717677038381,-500.0,0.00021166,2]
[328649632,1717677038390,-500.0,0.00021166,2]
[328649634,1717677038400,-500.0,0.00021166,2]
[328649636,1717677038410,-500.0,0.00021166,2]
[328649638,1717677038419,-293.13055693,0.00021255,2]
[328649640,1717677038429,-151.0,0.00021379,2]
[328649642,1717677038438,-393.489838,0.00021379,2]
[328649644,1717677038448,-393.489838,0.00021379,2]
[328649646,1717677038458,-328.005105,0.00021379,2]
[328649648,1717677038467,-151.0,0.00021379,2]
[328649650,1717677038476,-328.005105,0.00021379,2]
[328649652,1717677038486,-151.0,0.00021404,2]
[328649654,1717677038496,-151.0,0.00021404,2]
[328649656,1717677038506,-151.0,0.00021404,2]
[328649658,1717677038515,-151.0,0.00021404,2]
[328649660,1717677038524,-151.0,0.00021404,2]
[328649661,1717677038534,-151.0,0.00021404,2]
[328649662,1717677038544,-151.0,0.00021404,2]
[328649663,1717677038554,-152.740323,0.00021404,2]
[328649664,1717677038564,-151.0,0.00021404,2]
[328649665,1717677038577,-151.0,0.00021404,2]
[328649667,1717677038587,-151.0,0.00021404,2]
[328649669,1717677038597,-154.338792,0.00021404,2]
[328649671,1717677038606,-151.0,0.00021404,2]
[328649673,1717677038619,-187.7942234,0.00021409,2]
[328649675,1717677038628,-4236.27632862,0.00021447,2]
[328649677,1717677038638,-293.13055693,0.00021477,2]
[328649679,1717677038649,-157.961847,0.00021488,2]
[328649681,1717677038659,-152.785277,0.00021488,2]
[328649683,1717677038669,-151.0,0.00021488,2]
[328649685,1717677038678,-151.0,0.00021488,2]
[328649687,1717677038688,-151.0,0.00021488,2]
[328649689,1717677038698,-151.0,0.00021488,2]
[328649691,1717677038707,-1003.37032,0.00021517,2]
[328649693,1717677038717,-1003.37032,0.00021517,2]
[328649695,1717677038726,-151.0,0.00021517,2]
[328649697,1717677038740,-151.0,0.00021517,2]
[328649699,1717677038750,-151.0,0.00021517,2]
[328649701,1717677038760,-156.19711529,0.00021582,2]
[328649703,1717677038770,-151.0,0.00021644,2]
[328649705,1717677038780,-151.0,0.00021673,2]
[328649707,1717677038790,-151.0,0.00021673,2]
[328649709,1717677038800,-151.0,0.00021673,2]
[328649711,1717677038810,-151.0,0.00021673,2]
[328649713,1717677038819,-151.0,0.00021673,2]
[328649715,1717677038829,-151.0,0.00021673,2]
[328649717,1717677038838,-151.0,0.00021673,2]
[328649719,1717677038848,-393.489838,0.00021673,2]
[328649721,1717677038857,-393.489838,0.00021673,2]
[328649723,1717677038868,-328.005105,0.00021673,2]
[328649725,1717677038878,-151.0,0.00021673,2]
[328649727,1717677038887,-293.13055693,0.00021698,2]
[328649729,1717677038896,-202.13963443,0.00021698,2]
[328649731,1717677038905,-609.69428532,0.00021794,2]
[328649733,1717677038914,-151.0,0.00021794,2]
[328649735,1717677038923,-151.0,0.00021794,2]
[328649737,1717677038932,-151.0,0.00021794,2]
[328649739,1717677038942,-169.009514,0.00021794,2]
[328649741,1717677038952,-151.0,0.00021795,2]
[328649743,1717677038962,-633.45211834,0.00021795,2]
[328649745,1717677038971,-274.4473688,0.00021795,2]
[328649747,1717677038980,-20306.81032204,0.00021796,2]
[328649749,1717677038989,-500.0,0.00021796,2]
[328649751,1717677038999,-500.0,0.00021796,2]
[328649753,1717677039009,-151.0,0.00021796,2]
[328649755,1717677039019,-151.0,0.00021796,2]
[328649757,1717677039028,-151.0,0.00021796,2]
[328649759,1717677039038,-151.0,0.00021796,2]
[328649761,1717677039049,-156.284908,0.00021796,2]
[328649763,1717677039059,-151.0,0.00021796,2]
[328649765,1717677039068,-161.897663,0.00021796,2]
[328649767,1717677039078,-151.0,0.00021796,2]
[328649769,1717677039089,-151.0,0.00021796,2]
[328649771,1717677039099,-1003.37032,0.00021796,2]
[328649773,1717677039110,-1003.37032,0.00021796,2]
[328649775,1717677039120,-1003.37032,0.00021796,2]
[328649777,1717677039131,-1003.37032,0.00021796,2]
[328649779,1717677039141,-151.0,0.00021796,2]
[328649781,1717677039151,-151.0,0.00021796,2]
[328649783,1717677039162,-151.0,0.00021796,2]
[328649785,1717677039172,-151.0,0.00021796,2]
[328649786,1717677039182,-151.0,0.00021796,2]
[328649789,1717677039193,-151.0,0.00021796,2]
[328649790,1717677039203,-151.0,0.00021796,2]
[328649792,1717677039212,-151.0,0.00021796,2]
[328649794,1717677039223,-151.0,0.00021796,2]
[328649797,1717677039233,-151.0,0.00021796,2]
[328649799,1717677039243,-593.37074115,0.00021796,2]
[328649801,1717677039253,-151.0,0.00021796,2]
[328649803,1717677039264,-151.0,0.00021796,2]
[328649805,1717677039274,-151.0,0.00021796,2]
[328649807,1717677039284,-151.0,0.00021796,2]
[328649809,1717677039294,-151.0,0.00021796,2]
[328649811,1717677039304,-151.0,0.00021796,2]
[328649812,1717677039314,-151.0,0.00021796,2]
[328649814,1717677039324,-151.0,0.00021796,2]
[328649816,1717677039334,-155.768776,0.00021796,2]
[328649819,1717677039344,-151.0,0.00021796,2]
[328649820,1717677039354,-151.0,0.00021796,2]
[328649822,1717677039365,-151.0,0.00021796,2]
[328649825,1717677039375,-151.0,0.00021796,2]
[328649827,1717677039385,-1689.82993633,0.00021796,2]
[328649829,1717677039396,-393.489838,0.00021796,2]
[328649831,1717677039405,-393.489838,0.00021796,2]
[328649833,1717677039415,-393.489838,0.00021796,2]
[328649835,1717677039425,-393.489838,0.00021796,2]
[328649837,1717677039435,-328.005105,0.00021796,2]
[328649839,1717677039445,-328.005105,0.00021796,2]
[328649849,1717677039533,-151.0,0.00021796,2]
[328649851,1717677039544,-151.0,0.00021796,2]
[328649853,1717677039554,-9911.76097796,0.00021797,2]
[328649855,1717677039564,-175.556993,0.00021797,2]
[328649857,1717677039577,-157.141017,0.00021797,2]
[328649859,1717677039587,-300.051221,0.00021797,2]
[328649861,1717677039597,-393.489838,0.00021797,2]
[328649863,1717677039607,-393.489838,0.00021797,2]
[328649865,1717677039619,-328.005105,0.00021797,2]
[328649867,1717677039629,-151.0,0.00021797,2]
[328649869,1717677039639,-5252.08070029,0.00021798,7]
[328649871,1717677039651,-2989.83172449,0.00021798,7]
[328649873,1717677039662,-13326.99747672,0.00021798,2]
[328649875,1717677039672,-88825.36776837,0.00021798,2]
[328649929,1717677041612,-328.005105,0.00021673,2]
[328649930,1717677041622,-328.005105,0.00021796,2]
[328649931,1717677041631,-328.005105,0.00021796,2]
[328649932,1717677041641,-328.005105,0.00021797,2]
[328649933,1717677041654,-35514.20088627,0.00021798,2]
[328649934,1717677041664,-154.95351395,0.00021798,2]
[328649935,1717677041674,-225.05706064,0.00021798,2]
[328649936,1717677041684,-500.0,0.00021798,2]
[328649937,1717677041693,-500.0,0.00021798,2]
[328649938,1717677041703,-500.0,0.00021798,2]
[328649939,1717677041711,-500.0,0.00021798,2]
[328649940,1717677041721,-500.0,0.00021798,2]
[328649941,1717677041730,-500.0,0.00021798,2]
[328649942,1717677041739,-500.0,0.00021798,2]
[328649944,1717677041749,-500.0,0.00021798,2]
[328649946,1717677041758,-151.0,0.00021798,2]
[328649947,1717677041767,-151.0,0.00021798,2]
[328649948,1717677041777,-255.385865,0.00021798,2]
[328649949,1717677041786,-1003.37032,0.00021798,2]
[328649950,1717677041795,-31.30980065,0.00021798,2]
[328649951,1717677041811,-972.06051935,0.00021798,2]
[328649952,1717677041821,-1003.37032,0.00021798,2]
[328649953,1717677041830,-1003.37032,0.00021798,2]
[328649954,1717677041840,-1003.37032,0.00021798,2]
[328649955,1717677041849,-1003.37032,0.00021798,2]
[328649956,1717677041859,-1003.37032,0.00021798,2]
[328649957,1717677041870,-1003.37032,0.00021798,2]
[328649958,1717677041879,-1003.37032,0.00021798,2]
[328649959,1717677041888,-1003.37032,0.00021798,2]
[328649960,1717677041897,-1003.37032,0.00021798,2]
[328649961,1717677041906,-1003.37032,0.00021798,2]
[328649962,1717677041915,-151.0,0.00021798,2]
[328649963,1717677041925,-151.0,0.00021798,2]
[328649964,1717677041936,-151.0,0.00021798,2]
[328649965,1717677041945,-151.0,0.00021798,2]
[328649966,1717677041957,-151.0,0.00021798,2]
[328649967,1717677042043,-151.0,0.00021798,2]
[328649968,1717677042057,-151.0,0.00021798,2]
[328649969,1717677042067,-151.0,0.00021798,2]
[328649970,1717677042077,-151.0,0.00021798,2]
[328649971,1717677042088,-151.0,0.00021798,2]
[328649972,1717677042098,-253.032072,0.00021798,2]
[328649973,1717677042108,-151.0,0.00021798,2]
[328649974,1717677042122,-151.0,0.00021798,2]
[328649975,1717677042132,-151.0,0.00021798,2]
[328649976,1717677042141,-151.0,0.00021798,2]
[328649977,1717677042151,-169.119536,0.00021798,2]
[328649978,1717677042160,-155.928253,0.00021798,2]
[328649979,1717677042171,-151.0,0.00021798,2]
[328649980,1717677042181,-151.0,0.00021798,2]
[328649981,1717677042190,-151.0,0.00021798,2]
[328649982,1717677042200,-151.0,0.00021798,2]
[328649983,1717677042210,-151.0,0.00021798,2]
[328649984,1717677042219,-151.0,0.00021798,2]
[328649985,1717677042229,-151.0,0.00021798,2]
[328649986,1717677042239,-151.0,0.00021798,2]
[328649987,1717677042248,-151.0,0.00021798,2]
[328649988,1717677042258,-151.0,0.00021798,2]
[328649989,1717677042267,-151.0,0.00021798,2]
[328649990,1717677042277,-151.0,0.00021798,2]
[328649991,1717677042287,-151.0,0.00021798,2]
[328649992,1717677042296,-151.0,0.00021798,2]
[328649993,1717677042306,-151.0,0.00021798,2]
[328649994,1717677042316,-151.0,0.00021798,2]
[328649995,1717677042325,-276.78993,0.00021798,2]
[328649996,1717677042335,-151.0,0.00021798,2]
[328649997,1717677042344,-151.0,0.00021798,2]
[328649998,1717677042353,-158.288148,0.00021798,2]
[328649999,1717677042364,-151.0,0.00021798,2]
[328650000,1717677042373,-151.0,0.00021798,2]
[328650001,1717677042382,-287.994921,0.00021798,2]
[328650002,1717677042392,-393.489838,0.00021798,2]
[328650003,1717677042404,-393.489838,0.00021798,2]
[328650004,1717677042414,-393.489838,0.00021798,2]
[328650005,1717677042423,-393.489838,0.00021798,2]
[328650006,1717677042432,-393.489838,0.00021798,2]
[328650007,1717677042442,-393.489838,0.00021798,2]
[328650008,1717677042452,-393.489838,0.00021798,2]
[328650009,1717677042462,-393.489838,0.00021798,2]
[328650010,1717677042472,-393.489838,0.00021798,2]
[328650011,1717677042481,-393.489841,0.00021798,2]
[328650012,1717677042490,-328.005105,0.00021798,2]
[328650013,1717677042499,-328.005105,0.00021798,2]
[328650014,1717677042508,-328.005105,0.00021798,2]
[328650015,1717677042518,-328.005105,0.00021798,2]
[328650016,1717677042527,-328.005105,0.00021798,2]
[328650017,1717677042536,-328.005105,0.00021798,2]
[328650018,1717677042545,-328.005105,0.00021798,2]
[328650019,1717677042555,-328.005105,0.00021798,2]
[328650020,1717677042565,-328.005105,0.00021798,2]
[328650021,1717677042577,-328.005102,0.00021798,2]
[328650022,1717677042586,-2440.15741232,0.00021799,2]
[328650023,1717677042596,-1003.37032,0.00021799,2]
[328650024,1717677042606,-1003.37033,0.00021799,2]
[328650025,1717677042619,-151.0,0.00021799,2]
[328650028,1717677042628,-500.0,0.000218,2]
[328650029,1717677042637,-500.0,0.000218,2]
[328650030,1717677042645,-500.0,0.000218,2]
[328650031,1717677042657,-500.0,0.000218,2]
[328650032,1717677042667,-166.666666,0.00021808,2]
[328650033,1717677042676,-151.0,0.00021918,2]
[328650034,1717677042686,-151.0,0.00021918,2]
[328650035,1717677042695,-151.0,0.00021918,2]
[328650036,1717677042704,-151.0,0.00021918,2]
[328650037,1717677042714,-151.0,0.00021918,2]
[328650038,1717677042723,-151.0,0.00021918,2]
[328650039,1717677042732,-151.0,0.00021918,2]
[328650040,1717677042741,-151.0,0.00021918,2]
[328650041,1717677042751,-151.0,0.00021918,2]
[328650042,1717677042760,-151.0,0.00021918,2]
[328650043,1717677042770,-151.0,0.00021918,2]
[328650044,1717677042779,-151.0,0.00021918,2]
[328650045,1717677042789,-151.0,0.00021918,2]
[328650046,1717677042799,-151.0,0.00021918,2]
[328650047,1717677042808,-151.0,0.00021918,2]
[328650048,1717677042818,-151.0,0.00021918,2]
[328650049,1717677042827,-151.0,0.00021918,2]
[328650050,1717677042836,-62.8872434,0.00021918,2]
[328650051,1717677042863,-187.3616946,0.00021918,2]
[328650052,1717677042872,-357.43769757,0.00022,2]
[328650053,1717677042881,-500.0,0.00022391,2]
[328650054,1717677042891,-500.0,0.00022391,2]
[328650055,1717677042900,-803.62811917,0.00022806,2]
[328650056,1717677042909,-918.75319521,0.00023,2]
[328650057,1717677042918,-500.0,0.00023,2]
[328650058,1717677042928,-500.0,0.00023,2]
[328650059,1717677042938,-151.0,0.0002319,5]
[328650060,1717677042947,-151.643,0.00023212,2]
[328650061,1717677042957,-454.499,0.00023212,2]
[328650062,1717677042967,-151.0,0.00023767,7]
[328650063,1717677042977,-1115.83753246,0.000239,2]
[328650064,1717677042986,-800.07347767,0.00024,2]
[328650065,1717677042995,-151.0,0.00024345,7]
[328650066,1717677043006,-762.53852719,0.000244,2]
[328650068,1717677043015,-29518.07938473,0.000245,2]
[328650073,1717677043562,-1157.66441,0.00021379,2]
[328650074,1717677043574,-1157.66441,0.00021673,2]
[328650075,1717677043583,-1157.66441,0.00021796,2]
[328650076,1717677043592,-1348.8928823,0.000245,2]
[328650079,1717677043672,-63245.12881064,0.000245,2]
[328650080,1717677043690,-16986.71493174,0.000245,2]
[328650089,1717677047598,-1157.66441,0.00021379,2]
[328650090,1717677047607,-1157.66441,0.00021796,2]
[328650091,1717677047619,-1157.66441,0.00021797,2]
[328650092,1717677047628,-1157.66441,0.00021798,2]
[328650093,1717677047637,-1157.66441,0.00021798,2]
[328650094,1717677047647,-1157.66441,0.00021798,2]
[328650095,1717677047656,-1157.66441,0.00021798,2]
[328650096,1717677047666,-1157.66441,0.00021798,2]
[328650097,1717677047675,-25318.13495841,0.000245,2]
[328650098,1717677047687,-3848.0,0.000245,2]
[328650101,1717677089370,372.42677625,9.999e-05,2]
[328650143,1717678019180,-275.45969432,0.00018077,2]
[328650144,1717678019213,-190.40082049,0.00018077,2]
[328650145,1717678019245,-8769.88391211,0.00018078,2]
[328650203,1717678232520,-24900.0,0.00018191,2]
[328650204,1717678232530,-1628.1313824,0.0001821,2]
[328650205,1717678232540,-190.09701144,0.0001855,2]
[328650206,1717678232549,-924.28781013,0.00018551,2]
[328650207,1717678232559,-585.8590925,0.00018778,2]
[328650208,1717678232568,-1163.39574427,0.000189,2]
[328650209,1717678232578,-162.99512303,0.00019,2]
[328650210,1717678232587,-292.31118058,0.00019109,2]
[328650211,1717678232597,-871.21736108,0.00019122,2]
[328650212,1717678232606,-192.89647917,0.000199,2]
[328650213,1717678232616,-271.47947929,0.00019999,2]
[328650214,1717678232625,-500.0,0.00019999,2]
[328650215,1717678232634,-500.0,0.00019999,2]
[328650216,1717678232643,-500.0,0.00019999,2]
[328650217,1717678232654,-254.32916889,0.00019999,2]
[328650218,1717678232663,-278.08277314,0.00019999,2]
[328650219,1717678232672,-117.34797878,0.00019999,2]
[328650220,1717678232685,-289.78885533,0.00019999,2]
[328650221,1717678232694,-301.37264787,0.00019999,2]
[328650222,1717678232704,-59.10001196,0.0002,2]
[328650223,1717678232715,-6494.1268145,0.0002,2]
[328650280,1717678238604,-3771.56529281,0.0002,2]